[Event "Early-Titled-Tuesday-Blitz-February-06-2024"]
[Site "Chess.com"]
[Date "2024.02.06"]
[Round "2"]
[White "ccccvhhhj"]
[Black "JaackCamel"]
[Result "1-0"]
[WhiteElo "2440"]
[BlackElo "2150"]
[TimeControl "180+1"]
[EndTime "8:17:58 PST"]
[Termination "ccccvhhhj won on time"]

1. d4 {[%clk 0:03:00.9]} 1... d5 {[%clk 0:02:19.5]} 2. Nc3 {[%clk 0:02:59.7]}
2... e6 {[%clk 0:02:18.2]} 3. Bf4 {[%clk 0:03:00.1]} 3... Bd6 {[%clk 0:02:17.7]}
4. Qd2 {[%clk 0:03:00.2]} 4... Nf6 {[%clk 0:02:15.4]} 5. f3 {[%clk 0:02:59.9]}
5... c5 {[%clk 0:02:14.7]} 6. Bxd6 {[%clk 0:02:50.9]} 6... Qxd6 {[%clk
0:02:14.3]} 7. e3 {[%clk 0:02:51.6]} 7... a6 {[%clk 0:02:13.1]} 8. O-O-O {[%clk
0:02:51.1]} 8... O-O {[%clk 0:02:09.8]} 9. g4 {[%clk 0:02:51]} 9... Nc6 {[%clk
0:02:07.1]} 10. h4 {[%clk 0:02:50.4]} 10... b5 {[%clk 0:02:04.9]} 11. h5 {[%clk
0:02:46.6]} 11... Bb7 {[%clk 0:01:59.4]} 12. g5 {[%clk 0:02:45.8]} 12... Ne8
{[%clk 0:01:58.6]} 13. g6 {[%clk 0:02:45.5]} 13... e5 {[%clk 0:01:56.4]} 14.
gxh7+ {[%clk 0:02:41.4]} 14... Kh8 {[%clk 0:01:55.9]} 15. h6 {[%clk 0:02:40.8]}
15... g6 {[%clk 0:01:55.5]} 16. dxe5 {[%clk 0:02:37.9]} 16... Nxe5 {[%clk
0:01:55.3]} 17. Nxd5 {[%clk 0:02:34.6]} 17... Bxd5 {[%clk 0:01:46.7]} 18. Qxd5
{[%clk 0:02:34.7]} 18... Qxd5 {[%clk 0:01:46.9]} 19. Rxd5 {[%clk 0:02:35.6]}
19... Nc4 {[%clk 0:01:09.9]} 20. Bxc4 {[%clk 0:02:32.4]} 20... bxc4 {[%clk
0:01:09.5]} 21. Rxc5 {[%clk 0:02:27.3]} 21... Nd6 {[%clk 0:01:08.1]} 22. Ne2
{[%clk 0:02:24.6]} 22... Rfe8 {[%clk 0:01:06.3]} 23. e4 {[%clk 0:02:23.8]} 23...
Kxh7 {[%clk 0:01:02.6]} 24. Nc3 {[%clk 0:02:16.4]} 24... Re6 {[%clk 0:00:54.1]}
25. Nd5 {[%clk 0:02:10.4]} 25... Ra7 {[%clk 0:00:53.7]} 26. c3 {[%clk
0:02:02.5]} 26... Rb7 {[%clk 0:00:51.8]} 27. Kc2 {[%clk 0:01:56.5]} 27... Ra7
{[%clk 0:00:47]} 28. Rc6 {[%clk 0:01:48.9]} 28... a5 {[%clk 0:00:42.2]} 29. a4
{[%clk 0:01:49.5]} 29... Rb7 {[%clk 0:00:36.7]} 30. Nc7 {[%clk 0:01:35]} 30...
Re7 {[%clk 0:00:31]} 31. Nd5 {[%clk 0:01:22.6]} 31... Re6 {[%clk 0:00:30.9]} 32.
Ra6 {[%clk 0:01:13.3]} 32... Ne8 {[%clk 0:00:25.3]} 33. Rxa5 {[%clk 0:01:05.9]}
33... Nf6 {[%clk 0:00:25.3]} 34. Ne3 {[%clk 0:00:56.1]} 34... Reb6 {[%clk
0:00:24.5]} 35. Rb1 {[%clk 0:00:54.8]} 35... Kxh6 {[%clk 0:00:17.6]} 36. Nxc4
{[%clk 0:00:54.9]} 36... Rc6 {[%clk 0:00:17.3]} 37. b3 {[%clk 0:00:53.6]} 37...
Kg7 {[%clk 0:00:15.7]} 38. Rg5 {[%clk 0:00:50]} 38... Nh7 {[%clk 0:00:15.1]} 39.
Rg2 {[%clk 0:00:49.5]} 39... Nf6 {[%clk 0:00:15]} 40. Na5 {[%clk 0:00:49.8]}
40... Rbb6 {[%clk 0:00:14.6]} 41. Nxc6 {[%clk 0:00:50.2]} 41... Rxc6 {[%clk
0:00:15.2]} 42. a5 {[%clk 0:00:50.7]} 42... Ra6 {[%clk 0:00:15.3]} 43. b4 {[%clk
0:00:51.2]} 43... Nd7 {[%clk 0:00:15]} 44. Rd2 {[%clk 0:00:50.6]} 44... Ne5
{[%clk 0:00:15.1]} 45. Kb3 {[%clk 0:00:46.7]} 45... Nxf3 {[%clk 0:00:15]} 46.
Rf2 {[%clk 0:00:47.4]} 46... Ne5 {[%clk 0:00:14.8]} 47. Ka4 {[%clk 0:00:48]}
47... Nd3 {[%clk 0:00:14.5]} 48. Rff1 {[%clk 0:00:45.7]} 48... Ne5 {[%clk
0:00:14.4]} 49. b5 {[%clk 0:00:45.5]} 49... Ra8 {[%clk 0:00:14.4]} 50. a6 {[%clk
0:00:46.1]} 50... Nc4 {[%clk 0:00:13.6]} 51. Kb4 {[%clk 0:00:45.9]} 51... Nd2
{[%clk 0:00:13.2]} 52. Ka5 {[%clk 0:00:46.4]} 52... Nxe4 {[%clk 0:00:13]} 53. b6
{[%clk 0:00:39.9]} 53... Nxc3 {[%clk 0:00:13]} 54. a7 {[%clk 0:00:39.6]} 54...
Nd5 {[%clk 0:00:07.9]} 55. Ka6 {[%clk 0:00:39.5]} 55... Re8 {[%clk 0:00:05.3]}
56. b7 {[%clk 0:00:38.9]} 56... Re6+ {[%clk 0:00:05.3]} 57. Ka5 {[%clk
0:00:38.2]} 57... Nc3 {[%clk 0:00:03.8]} 58. b8=Q {[%clk 0:00:36.5]} 1-0

[Event "Early-Titled-Tuesday-Blitz-February-06-2024"]
[Site "Chess.com"]
[Date "2024.02.06"]
[Round "2"]
[White "MFatigue"]
[Black "Arifarsky"]
[Result "0-1"]
[WhiteElo "2441"]
[BlackElo "2706"]
[TimeControl "180+1"]
[EndTime "8:17:59 PST"]
[Termination "Arifarsky won by resignation"]

1. e4 {[%clk 0:02:01.6]} 1... e5 {[%clk 0:02:56.8]} 2. Nf3 {[%clk 0:02:01.4]}
2... Nc6 {[%clk 0:02:56.6]} 3. d4 {[%clk 0:02:02.1]} 3... exd4 {[%clk
0:02:51.5]} 4. Bc4 {[%clk 0:02:02.6]} 4... Nf6 {[%clk 0:02:40.2]} 5. O-O {[%clk
0:02:03.1]} 5... Nxe4 {[%clk 0:02:05]} 6. Re1 {[%clk 0:02:01.8]} 6... d5 {[%clk
0:02:03.1]} 7. Bxd5 {[%clk 0:02:02.5]} 7... Qxd5 {[%clk 0:02:03.7]} 8. Nc3
{[%clk 0:02:03.4]} 8... Qd8 {[%clk 0:01:54.2]} 9. Rxe4+ {[%clk 0:02:02.4]} 9...
Be7 {[%clk 0:01:51.6]} 10. Nxd4 {[%clk 0:02:03]} 10... O-O {[%clk 0:01:42.9]}
11. Nxc6 {[%clk 0:02:01]} 11... bxc6 {[%clk 0:01:42]} 12. Rd4 {[%clk 0:02:00.2]}
12... Qe8 {[%clk 0:01:37.5]} 13. Bf4 {[%clk 0:02:00]} 13... c5 {[%clk 0:01:11]}
14. Rd3 {[%clk 0:01:59.9]} 14... c6 {[%clk 0:00:55.6]} 15. Re3 {[%clk 0:01:40]}
15... Be6 {[%clk 0:00:53.7]} 16. Qf3 {[%clk 0:01:34.4]} 16... Qc8 {[%clk
0:00:50.2]} 17. h3 {[%clk 0:01:33.6]} 17... Re8 {[%clk 0:00:47.9]} 18. Be5
{[%clk 0:01:30.8]} 18... Bf8 {[%clk 0:00:46.5]} 19. Rd1 {[%clk 0:01:13.6]} 19...
Bf5 {[%clk 0:00:41.1]} 20. Rd2 {[%clk 0:01:05.6]} 20... Bg6 {[%clk 0:00:39.5]}
21. Bd6 {[%clk 0:00:57.3]} 21... Rxe3 {[%clk 0:00:32.3]} 22. Qxe3 {[%clk
0:00:58.2]} 22... c4 {[%clk 0:00:31]} 23. Qc5 {[%clk 0:00:49.5]} 23... Qe6
{[%clk 0:00:22.4]} 24. Bxf8 {[%clk 0:00:34.4]} 24... Qe1+ {[%clk 0:00:18.5]} 25.
Kh2 {[%clk 0:00:34.9]} 25... Qxd2 {[%clk 0:00:18.6]} 26. Bd6 {[%clk 0:00:33.1]}
26... Qxc2 {[%clk 0:00:18.8]} 27. Qxc6 {[%clk 0:00:31.9]} 27... Rd8 {[%clk
0:00:15.9]} 28. Nd5 {[%clk 0:00:28.7]} 28... Qd3 {[%clk 0:00:10.5]} 29. Nf4
{[%clk 0:00:19.3]} 29... Qxd6 {[%clk 0:00:09.7]} 30. Qxc4 {[%clk 0:00:18.5]}
30... Bf5 {[%clk 0:00:08.6]} 31. g3 {[%clk 0:00:18.7]} 31... Be6 {[%clk
0:00:08.9]} 32. Qa4 {[%clk 0:00:18]} 32... g6 {[%clk 0:00:09]} 33. Qxa7 {[%clk
0:00:18.2]} 33... Qe5 {[%clk 0:00:08.8]} 34. b3 {[%clk 0:00:17.6]} 34... Re8
{[%clk 0:00:08.3]} 35. Qe3 {[%clk 0:00:17.2]} 35... Qxe3 {[%clk 0:00:08.2]} 36.
fxe3 {[%clk 0:00:18.1]} 36... Ra8 {[%clk 0:00:08.6]} 37. a4 {[%clk 0:00:17.9]}
37... Bxb3 {[%clk 0:00:08.5]} 38. g4 {[%clk 0:00:18.8]} 38... Rxa4 {[%clk
0:00:08.7]} 39. Kg3 {[%clk 0:00:19.7]} 39... Rxf4 {[%clk 0:00:08.5]} 40. exf4
{[%clk 0:00:18.7]} 40... Kg7 {[%clk 0:00:09]} 41. h4 {[%clk 0:00:18.9]} 41... f5
{[%clk 0:00:08.9]} 42. gxf5 {[%clk 0:00:17.6]} 42... gxf5 {[%clk 0:00:09.4]} 43.
Kf3 {[%clk 0:00:18.3]} 43... Kg6 {[%clk 0:00:09.9]} 44. Kg3 {[%clk 0:00:18.5]}
44... Kh5 {[%clk 0:00:10.1]} 45. Kh3 {[%clk 0:00:19.4]} 45... Bd1 {[%clk
0:00:10.7]} 46. Kg3 {[%clk 0:00:19.9]} 46... Bg4 {[%clk 0:00:11.6]} 0-1

[Event "Early-Titled-Tuesday-Blitz-February-06-2024"]
[Site "Chess.com"]
[Date "2024.02.06"]
[Round "2"]
[White "MatthewG-p4p"]
[Black "Arigu07"]
[Result "1-0"]
[WhiteElo "2816"]
[BlackElo "2565"]
[TimeControl "180+1"]
[EndTime "8:18:00 PST"]
[Termination "MatthewG-p4p won by resignation"]

1. f4 {[%clk 0:02:58.7]} 1... e5 {[%clk 0:02:57.7]} 2. fxe5 {[%clk 0:02:59.6]}
2... d6 {[%clk 0:02:57.9]} 3. Nf3 {[%clk 0:03:00.2]} 3... Nc6 {[%clk 0:02:57.7]}
4. e4 {[%clk 0:03:00.5]} 4... dxe5 {[%clk 0:02:57.8]} 5. Bc4 {[%clk 0:03:00.5]}
5... Bc5 {[%clk 0:02:58.2]} 6. Qe2 {[%clk 0:03:00.5]} 6... Bg4 {[%clk
0:02:56.3]} 7. c3 {[%clk 0:03:00.4]} 7... Nf6 {[%clk 0:02:51.2]} 8. Bxf7+ {[%clk
0:02:54.5]} 8... Kxf7 {[%clk 0:02:51]} 9. Qc4+ {[%clk 0:02:54.6]} 9... Kg6
{[%clk 0:02:23.4]} 10. Qxc5 {[%clk 0:02:54.7]} 10... Nxe4 {[%clk 0:02:23.5]} 11.
Qe3 {[%clk 0:02:54.5]} 11... Bxf3 {[%clk 0:01:52.7]} 12. Qxf3 {[%clk 0:02:50.6]}
12... Nf6 {[%clk 0:01:39.9]} 13. O-O {[%clk 0:02:50.2]} 13... Qd5 {[%clk
0:01:29.8]} 14. Qf5+ {[%clk 0:02:50.3]} 14... Kf7 {[%clk 0:01:29.8]} 15. d4
{[%clk 0:02:51.1]} 15... Rae8 {[%clk 0:01:23.9]} 16. Bg5 {[%clk 0:02:50.4]}
16... Qe6 {[%clk 0:01:24.3]} 17. Qxe6+ {[%clk 0:02:34.9]} 17... Kxe6 {[%clk
0:01:22.7]} 18. dxe5 {[%clk 0:02:28.9]} 18... Nxe5 {[%clk 0:01:22.6]} 19. Nd2
{[%clk 0:02:28.9]} 19... Rhf8 {[%clk 0:01:21]} 20. Nb3 {[%clk 0:02:24.8]} 20...
Kd7 {[%clk 0:01:18.5]} 21. Nd4 {[%clk 0:02:19]} 21... Kc8 {[%clk 0:01:13.9]} 22.
a4 {[%clk 0:02:16.2]} 22... Nd3 {[%clk 0:01:13.8]} 23. Rab1 {[%clk 0:01:43.9]}
23... Ne4 {[%clk 0:01:12.8]} 24. Rxf8 {[%clk 0:01:43.5]} 24... Rxf8 {[%clk
0:01:13.6]} 25. Be3 {[%clk 0:01:44.2]} 25... Re8 {[%clk 0:01:13.1]} 26. Nc2
{[%clk 0:01:39.9]} 26... a5 {[%clk 0:01:10]} 27. Bd4 {[%clk 0:01:35.6]} 27... g5
{[%clk 0:01:06.1]} 28. b4 {[%clk 0:01:35.1]} 28... axb4 {[%clk 0:00:57.2]} 29.
cxb4 {[%clk 0:01:35.2]} 29... Nf4 {[%clk 0:00:57.3]} 30. Re1 {[%clk 0:01:27.1]}
30... Kd7 {[%clk 0:00:55.8]} 31. a5 {[%clk 0:01:24.6]} 31... Nd6 {[%clk
0:00:44.3]} 32. Rxe8 {[%clk 0:01:17.9]} 32... Nxe8 {[%clk 0:00:44.8]} 33. b5
{[%clk 0:01:10]} 33... Nd6 {[%clk 0:00:35.8]} 34. a6 {[%clk 0:01:06.3]} 34...
bxa6 {[%clk 0:00:35.9]} 35. bxa6 {[%clk 0:01:07]} 35... Kc8 {[%clk 0:00:35.1]}
36. Kf2 {[%clk 0:00:51.3]} 36... Ne6 {[%clk 0:00:34.8]} 37. Be3 {[%clk
0:00:51.3]} 37... c5 {[%clk 0:00:33.8]} 38. Kf3 {[%clk 0:00:34.5]} 38... h5
{[%clk 0:00:34.1]} 39. Ne1 {[%clk 0:00:28.7]} 39... Kc7 {[%clk 0:00:32.7]} 40.
Nd3 {[%clk 0:00:29]} 40... Kb6 {[%clk 0:00:32.8]} 41. Nxc5 {[%clk 0:00:27.5]}
41... g4+ {[%clk 0:00:28.2]} 42. Ke2 {[%clk 0:00:26.4]} 42... Nc7 {[%clk
0:00:24.9]} 43. Ne6+ {[%clk 0:00:19.2]} 43... Kxa6 {[%clk 0:00:23.4]} 44. Nxc7+
{[%clk 0:00:19.5]} 44... Kb7 {[%clk 0:00:24.1]} 45. Nd5 {[%clk 0:00:19.8]} 45...
Kc6 {[%clk 0:00:23.1]} 46. Nf6 {[%clk 0:00:20.2]} 46... g3 {[%clk 0:00:21.1]}
47. h3 {[%clk 0:00:20.4]} 47... h4 {[%clk 0:00:20.9]} 48. Bg5 {[%clk 0:00:20.4]}
48... Nf5 {[%clk 0:00:20.5]} 49. Kf3 {[%clk 0:00:19.9]} 49... Kd6 {[%clk
0:00:20.9]} 50. Kg4 {[%clk 0:00:19.3]} 50... Ke6 {[%clk 0:00:21.1]} 51. Ne4
{[%clk 0:00:17.4]} 51... Ke5 {[%clk 0:00:20.8]} 52. Nd2 {[%clk 0:00:18]} 52...
Ke6 {[%clk 0:00:18.9]} 53. Nf3 {[%clk 0:00:18.1]} 53... Nd6 {[%clk 0:00:18.2]}
54. Nxh4 {[%clk 0:00:17.5]} 54... Ne4 {[%clk 0:00:19.1]} 55. Bf4 {[%clk
0:00:18]} 1-0

[Event "Early-Titled-Tuesday-Blitz-February-06-2024"]
[Site "Chess.com"]
[Date "2024.02.06"]
[Round "2"]
[White "Lanshou"]
[Black "volkanyirik"]
[Result "1-0"]
[WhiteElo "2711"]
[BlackElo "2443"]
[TimeControl "180+1"]
[EndTime "8:18:00 PST"]
[Termination "Lanshou won by resignation"]

1. e4 {[%clk 0:03:00.9]} 1... c5 {[%clk 0:02:58.4]} 2. Nf3 {[%clk 0:02:59.7]}
2... d6 {[%clk 0:02:58.9]} 3. d4 {[%clk 0:02:59.5]} 3... cxd4 {[%clk 0:02:59.8]}
4. Nxd4 {[%clk 0:03:00.1]} 4... Nf6 {[%clk 0:02:59.8]} 5. Bd3 {[%clk 0:02:59.9]}
5... g6 {[%clk 0:02:57.6]} 6. c4 {[%clk 0:02:59.1]} 6... Bg7 {[%clk 0:02:57.9]}
7. h3 {[%clk 0:02:58.5]} 7... O-O {[%clk 0:02:58.8]} 8. Be3 {[%clk 0:02:58.5]}
8... Nc6 {[%clk 0:02:59.1]} 9. Nc3 {[%clk 0:02:57.2]} 9... e6 {[%clk 0:02:45.7]}
10. O-O {[%clk 0:02:41.4]} 10... d5 {[%clk 0:02:35.5]} 11. exd5 {[%clk
0:02:38.1]} 11... exd5 {[%clk 0:02:35.7]} 12. Nxc6 {[%clk 0:02:36.2]} 12... bxc6
{[%clk 0:02:35.1]} 13. Bd4 {[%clk 0:02:28.2]} 13... Be6 {[%clk 0:02:30.1]} 14.
cxd5 {[%clk 0:02:23.4]} 14... Nxd5 {[%clk 0:02:29.7]} 15. Bxg7 {[%clk
0:02:20.3]} 15... Kxg7 {[%clk 0:02:30.6]} 16. Qc1 {[%clk 0:02:00.9]} 16... Qf6
{[%clk 0:02:12.6]} 17. Ne4 {[%clk 0:01:55.6]} 17... Qd4 {[%clk 0:02:12.2]} 18.
Rd1 {[%clk 0:01:54]} 18... Rac8 {[%clk 0:01:58.9]} 19. Nc5 {[%clk 0:01:49.6]}
19... Nf4 {[%clk 0:01:50.8]} 20. Bf1 {[%clk 0:01:36.5]} 20... Qf6 {[%clk
0:01:39.8]} 21. Ne4 {[%clk 0:01:34.4]} 21... Qe5 {[%clk 0:01:38.9]} 22. Qe3
{[%clk 0:01:27.5]} 22... Bd5 {[%clk 0:01:31.3]} 23. Nc3 {[%clk 0:01:24.2]} 23...
Rfe8 {[%clk 0:01:16.5]} 24. Qxe5+ {[%clk 0:01:22.7]} 24... Rxe5 {[%clk
0:01:15.2]} 25. Rd4 {[%clk 0:01:23.3]} 25... Ne6 {[%clk 0:01:13.8]} 26. Ra4
{[%clk 0:01:23.3]} 26... Rc7 {[%clk 0:01:12.6]} 27. Rc1 {[%clk 0:01:23.5]} 27...
Rd7 {[%clk 0:01:12.7]} 28. b3 {[%clk 0:01:18.6]} 28... h6 {[%clk 0:01:12]} 29.
Ra5 {[%clk 0:01:13.6]} 29... f6 {[%clk 0:01:09.7]} 30. Rd1 {[%clk 0:01:12.5]}
30... Nd8 {[%clk 0:01:02.4]} 31. Bc4 {[%clk 0:01:03.9]} 31... Ne6 {[%clk
0:00:46.5]} 32. Bxd5 {[%clk 0:01:03.1]} 32... cxd5 {[%clk 0:00:47.4]} 33. Rdxd5
{[%clk 0:01:00]} 33... Rexd5 {[%clk 0:00:47.6]} 34. Rxd5 {[%clk 0:00:54.1]}
34... Rc7 {[%clk 0:00:47.6]} 35. Nb5 {[%clk 0:00:48.9]} 35... Rb7 {[%clk
0:00:46.4]} 36. g3 {[%clk 0:00:41.1]} 36... f5 {[%clk 0:00:40.7]} 37. Kg2 {[%clk
0:00:36.5]} 37... Kf6 {[%clk 0:00:39.7]} 38. Nd6 {[%clk 0:00:35.6]} 38... Rb6
{[%clk 0:00:31.2]} 39. Nc4 {[%clk 0:00:34.2]} 39... Rb7 {[%clk 0:00:29.8]} 40.
h4 {[%clk 0:00:33.6]} 40... g5 {[%clk 0:00:28.7]} 41. hxg5+ {[%clk 0:00:33.2]}
41... hxg5 {[%clk 0:00:29.2]} 42. Nd6 {[%clk 0:00:23.1]} 42... Rb6 {[%clk
0:00:28.3]} 43. Rxf5+ {[%clk 0:00:20.9]} 43... Kg6 {[%clk 0:00:25.4]} 44. Rd5
{[%clk 0:00:21.1]} 44... Kf6 {[%clk 0:00:22.2]} 45. Nc4 {[%clk 0:00:21]} 45...
Rc6 {[%clk 0:00:21.5]} 46. a4 {[%clk 0:00:19.7]} 46... Nc5 {[%clk 0:00:21.2]}
47. Nd2 {[%clk 0:00:15.3]} 47... Ke6 {[%clk 0:00:17.9]} 48. Rxg5 {[%clk
0:00:14.9]} 48... Kf6 {[%clk 0:00:18.3]} 49. Rxc5 {[%clk 0:00:14.7]} 49... Rxc5
{[%clk 0:00:18.1]} 50. Ne4+ {[%clk 0:00:15.2]} 50... Ke5 {[%clk 0:00:19]} 51.
Nxc5 {[%clk 0:00:16.1]} 51... Kd4 {[%clk 0:00:19.9]} 52. b4 {[%clk 0:00:16.3]}
52... Kc4 {[%clk 0:00:19.7]} 53. Na6 {[%clk 0:00:15.7]} 1-0

[Event "Early-Titled-Tuesday-Blitz-February-06-2024"]
[Site "Chess.com"]
[Date "2024.02.06"]
[Round "2"]
[White "Ginger_GM"]
[Black "disciplinedbrat"]
[Result "1-0"]
[WhiteElo "2685"]
[BlackElo "2289"]
[TimeControl "180+1"]
[EndTime "8:18:00 PST"]
[Termination "Ginger_GM won on time"]

1. f4 {[%clk 0:03:00.9]} 1... e5 {[%clk 0:02:52.6]} 2. e4 {[%clk 0:02:58.4]}
2... d5 {[%clk 0:02:50.8]} 3. exd5 {[%clk 0:02:54.4]} 3... exf4 {[%clk 0:02:39]}
4. Nf3 {[%clk 0:02:52.4]} 4... Nf6 {[%clk 0:02:37.3]} 5. Bc4 {[%clk 0:02:51.5]}
5... Bg4 {[%clk 0:02:29.6]} 6. O-O {[%clk 0:02:41.4]} 6... Be7 {[%clk
0:02:29.7]} 7. Nc3 {[%clk 0:02:38]} 7... O-O {[%clk 0:02:23.4]} 8. d4 {[%clk
0:02:36.6]} 8... c6 {[%clk 0:02:18.9]} 9. Bxf4 {[%clk 0:02:25.1]} 9... cxd5
{[%clk 0:02:16.1]} 10. Bb3 {[%clk 0:02:24.6]} 10... Nc6 {[%clk 0:02:14.5]} 11.
Qd3 {[%clk 0:02:09.5]} 11... Rc8 {[%clk 0:01:55.1]} 12. Ne5 {[%clk 0:02:07.1]}
12... Nxd4 {[%clk 0:01:52.7]} 13. Nxg4 {[%clk 0:01:50.9]} 13... Nxg4 {[%clk
0:01:51.1]} 14. Bxd5 {[%clk 0:01:25.5]} 14... Qb6 {[%clk 0:01:24.8]} 15. Kh1
{[%clk 0:01:11.4]} 15... Qxb2 {[%clk 0:01:18.5]} 16. Bd2 {[%clk 0:00:48]} 16...
Qxa1 {[%clk 0:00:58.4]} 17. Ne4 {[%clk 0:00:19.4]} 17... Qb2 {[%clk 0:00:42.1]}
18. Qg3 {[%clk 0:00:12.1]} 18... h5 {[%clk 0:00:19.5]} 19. h3 {[%clk 0:00:11.9]}
19... Ne2 {[%clk 0:00:19.5]} 20. Qf3 {[%clk 0:00:09.1]} 20... Nd4 {[%clk
0:00:10.9]} 21. Bxf7+ {[%clk 0:00:08.2]} 21... Kh8 {[%clk 0:00:09.2]} 22. Qf4
{[%clk 0:00:08.6]} 22... Rxf7 {[%clk 0:00:08.6]} 23. Qxf7 {[%clk 0:00:08.5]}
23... Rf8 {[%clk 0:00:09.3]} 24. Qxh5+ {[%clk 0:00:08.4]} 24... Kg8 {[%clk
0:00:09]} 25. Rxf8+ {[%clk 0:00:08.1]} 25... Kxf8 {[%clk 0:00:09.5]} 26. Qxg4
{[%clk 0:00:08]} 26... Qxc2 {[%clk 0:00:08.2]} 27. Qf4+ {[%clk 0:00:05.9]} 27...
Kg8 {[%clk 0:00:07.6]} 28. Ng3 {[%clk 0:00:06.1]} 28... Qd1+ {[%clk 0:00:07]}
29. Kh2 {[%clk 0:00:06.6]} 29... Ne6 {[%clk 0:00:07]} 30. Qe3 {[%clk 0:00:06.1]}
30... Kf8 {[%clk 0:00:06.5]} 31. Qxe6 {[%clk 0:00:05.2]} 31... Qxd2 {[%clk
0:00:07.2]} 32. Qf5+ {[%clk 0:00:05.7]} 32... Ke8 {[%clk 0:00:07]} 33. Ne4
{[%clk 0:00:06.1]} 33... Qd4 {[%clk 0:00:05]} 34. Qc8+ {[%clk 0:00:05.7]} 34...
Kf7 {[%clk 0:00:04.6]} 35. Qf5+ {[%clk 0:00:05.6]} 35... Ke8 {[%clk 0:00:04.4]}
36. Qg6+ {[%clk 0:00:05.4]} 36... Kd8 {[%clk 0:00:04.1]} 37. Qe6 {[%clk
0:00:05.5]} 37... Qd7 {[%clk 0:00:03.3]} 38. Qg8+ {[%clk 0:00:04.8]} 38... Kc7
{[%clk 0:00:03.8]} 39. Qc4+ {[%clk 0:00:04.4]} 39... Qc6 {[%clk 0:00:03.6]} 40.
Qd4 {[%clk 0:00:04.3]} 40... Bd6+ {[%clk 0:00:03.3]} 41. Kg1 {[%clk 0:00:04.3]}
41... Qc1+ {[%clk 0:00:02.2]} 42. Kf2 {[%clk 0:00:04.6]} 42... Qc2+ {[%clk
0:00:02.2]} 43. Kf3 {[%clk 0:00:05]} 1-0